[Event "November 21 Late 2023"]
[Site "https://www.chess.com"]
[Date "2023.11.21"]
[Round "2"]
[White "Spata, German"]
[Black "Suspenser17"]
[Result "1-0"]
[Board "99"]
[TimeControl "180+1"]
[WhiteFideId "113026"]
[WhiteElo "2260"]
[BlackElo "2403"]
[WhiteTeam "ARG"]
[WhiteClock "0:00:14"]
[BlackClock "0:00:05"]

1. Nf3 {[%clk 0:02:57]}  d5 {[%clk 0:03:00]} 2. e3 {[%clk 0:02:56]}  Nf6 {[%clk 0:02:59]} 3. b3 {[%clk 0:02:57]}  Bf5 {[%clk 0:02:57]} 4. Bb2 {[%clk 0:02:58]}  e6 {[%clk 0:02:58]} 5. Be2 {[%clk 0:02:58]}  Be7 {[%clk 0:02:58]} 6. O-O {[%clk 0:02:58]}  O-O {[%clk 0:02:59]} 7. c4 {[%clk 0:02:59]}  c6 {[%clk 0:02:59]} 8. cxd5 {[%clk 0:03:00]}  cxd5 {[%clk 0:02:56]} 9. d3 {[%clk 0:03:00]}  Nc6 {[%clk 0:02:56]} 10. a3 {[%clk 0:03:01]}  Rc8 {[%clk 0:02:56]} 11. Nbd2 {[%clk 0:03:01]}  Qb6 {[%clk 0:02:55]} 12. b4 {[%clk 0:03:01]}  h6 {[%clk 0:02:54]} 13. Nd4 {[%clk 0:03:00]}  Bg6 {[%clk 0:02:51]} 14. N2b3 {[%clk 0:02:59]}  Rc7 {[%clk 0:02:27]} 15. Nxc6 {[%clk 0:02:52]}  Rxc6 {[%clk 0:02:26]} 16. Bd4 {[%clk 0:02:49]}  Qb5 {[%clk 0:02:21]} 17. Bb2 {[%clk 0:02:36]}  Qa4 {[%clk 0:02:18]} 18. Nd4 {[%clk 0:02:32]}  Qxd1 {[%clk 0:02:17]} 19. Rfxd1 {[%clk 0:02:31]}  Rcc8 {[%clk 0:02:16]} 20. Rdc1 {[%clk 0:02:28]}  a6 {[%clk 0:02:15]} 21. Kf1 {[%clk 0:02:13]}  Bd6 {[%clk 0:02:04]} 22. Ke1 {[%clk 0:02:08]}  h5 {[%clk 0:01:57]} 23. h3 {[%clk 0:02:05]}  Nd7 {[%clk 0:01:52]} 24. Kd2 {[%clk 0:02:00]}  Nb6 {[%clk 0:01:52]} 25. Nb3 {[%clk 0:01:50]}  Na4 {[%clk 0:01:50]} 26. Rxc8 {[%clk 0:01:46]}  Rxc8 {[%clk 0:01:50]} 27. Rc1 {[%clk 0:01:45]}  Rxc1 {[%clk 0:01:37]} 28. Bxc1 {[%clk 0:01:43]}  b6 {[%clk 0:01:32]} 29. d4 {[%clk 0:01:38]}  a5 {[%clk 0:01:30]} 30. bxa5 {[%clk 0:01:34]}  bxa5 {[%clk 0:01:29]} 31. Nxa5 {[%clk 0:01:34]}  Kf8 {[%clk 0:01:22]} 32. Bd1 {[%clk 0:01:21]}  Nb6 {[%clk 0:01:19]} 33. Bc2 {[%clk 0:01:19]}  Bxc2 {[%clk 0:01:14]} 34. Kxc2 {[%clk 0:01:18]}  Ke7 {[%clk 0:01:15]} 35. Kb3 {[%clk 0:01:15]}  h4 {[%clk 0:01:14]} 36. Bd2 {[%clk 0:01:14]}  Kd7 {[%clk 0:01:11]} 37. Bb4 {[%clk 0:01:13]}  Bh2 {[%clk 0:01:09]} 38. a4 {[%clk 0:01:05]}  g5 {[%clk 0:01:06]} 39. Be1 {[%clk 0:01:02]}  f5 {[%clk 0:01:04]} 40. Nb7 {[%clk 0:00:54]}  Nc4 {[%clk 0:01:01]} 41. Nc5+ {[%clk 0:00:52]}  Kd6 {[%clk 0:00:58]} 42. Nd3 {[%clk 0:00:50]}  g4 {[%clk 0:00:54]} 43. a5 {[%clk 0:00:41]}  g3 {[%clk 0:00:27]} 44. a6 {[%clk 0:00:33]}  Kc6 {[%clk 0:00:23]} 45. Kc2 {[%clk 0:00:20]}  Bg1 {[%clk 0:00:14]} 46. fxg3 {[%clk 0:00:18]}  Nxe3+ {[%clk 0:00:14]} 47. Kd2 {[%clk 0:00:15]}  hxg3 {[%clk 0:00:13]} 48. Bxg3 {[%clk 0:00:14]}  Nxg2 {[%clk 0:00:13]} 49. Be5 {[%clk 0:00:13]}  Be3+ {[%clk 0:00:11]} 50. Ke2 {[%clk 0:00:13]}  Bg5 {[%clk 0:00:10]} 51. Nc5 {[%clk 0:00:13]}  Nf4+ {[%clk 0:00:08]} 52. Bxf4 {[%clk 0:00:12]}  Bxf4 {[%clk 0:00:09]} 53. Nxe6 {[%clk 0:00:12]}  Bh6 {[%clk 0:00:08]} 54. Kd3 {[%clk 0:00:12]}  Kb6 {[%clk 0:00:07]} 55. Nc5 {[%clk 0:00:11]}  Ka7 {[%clk 0:00:06]} 56. h4 {[%clk 0:00:11]}  f4 {[%clk 0:00:05]} 57. h5 {[%clk 0:00:12]}  Kb6 {[%clk 0:00:05]} 58. Nd7+ {[%clk 0:00:09]}  Kxa6 {[%clk 0:00:04]} 59. Ne5 {[%clk 0:00:10]}  Kb6 {[%clk 0:00:04]} 60. Nf7 {[%clk 0:00:09]}  Bg7 {[%clk 0:00:04]} 61. h6 {[%clk 0:00:09]}  Bf6 {[%clk 0:00:04]} 62. h7 {[%clk 0:00:10]}  Kc6 {[%clk 0:00:04]} 63. h8=Q {[%clk 0:00:10]}  Bxh8 {[%clk 0:00:04]} 64. Nxh8 {[%clk 0:00:11]}  Kd6 {[%clk 0:00:04]} 65. Ng6 {[%clk 0:00:11]}  f3 {[%clk 0:00:03]} 66. Ke3 {[%clk 0:00:12]}  Kc6 {[%clk 0:00:03]} 67. Kxf3 {[%clk 0:00:11]}  Kb5 {[%clk 0:00:04]} 68. Ke3 {[%clk 0:00:12]}  Kc4 {[%clk 0:00:05]} 69. Nf4 {[%clk 0:00:12]}  Kc3 {[%clk 0:00:06]} 70. Nxd5+ {[%clk 0:00:12]}  Kc4 {[%clk 0:00:06]} 71. Nf4 {[%clk 0:00:13]}  Kb5 {[%clk 0:00:05]} 72. Ke4 {[%clk 0:00:14]} 1-0

[Event "November 21 Late 2023"]
[Site "https://www.chess.com"]
[Date "2023.11.21"]
[Round "2"]
[White "Skatchkov, Valery"]
[Black "Rios Escobar, Adan"]
[Result "1-0"]
[Board "101"]
[TimeControl "180+1"]
[WhiteFideId "24195812"]
[BlackFideId "3403645"]
[WhiteElo "2320"]
[BlackElo "2401"]
[WhiteTeam "RUS"]
[BlackTeam "CHI"]
[WhiteClock "0:01:32"]
[BlackClock "0:00:02"]

1. d4 {[%clk 0:03:00]}  Nf6 {[%clk 0:02:55]} 2. c4 {[%clk 0:03:01]}  g6 {[%clk 0:02:56]} 3. Nc3 {[%clk 0:03:01]}  d5 {[%clk 0:02:55]} 4. Bg5 {[%clk 0:03:01]}  Ne4 {[%clk 0:02:50]} 5. Bf4 {[%clk 0:03:01]}  Nxc3 {[%clk 0:02:40]} 6. bxc3 {[%clk 0:03:01]}  Bg7 {[%clk 0:02:28]} 7. Nf3 {[%clk 0:03:01]}  O-O {[%clk 0:02:28]} 8. e3 {[%clk 0:03:01]}  c5 {[%clk 0:02:27]} 9. cxd5 {[%clk 0:03:02]}  cxd4 {[%clk 0:02:23]} 10. cxd4 {[%clk 0:03:03]}  Qxd5 {[%clk 0:02:19]} 11. Be2 {[%clk 0:03:03]}  Qa5+ {[%clk 0:02:16]} 12. Qd2 {[%clk 0:03:04]}  Qxd2+ {[%clk 0:02:10]} 13. Kxd2 {[%clk 0:03:04]}  Nc6 {[%clk 0:02:10]} 14. Rhb1 {[%clk 0:03:05]}  Rd8 {[%clk 0:02:08]} 15. Ke1 {[%clk 0:03:01]}  b6 {[%clk 0:02:07]} 16. a4 {[%clk 0:02:54]}  Bg4 {[%clk 0:01:54]} 17. Rc1 {[%clk 0:02:52]}  Na5 {[%clk 0:01:50]} 18. Rc7 {[%clk 0:02:52]}  Bf6 {[%clk 0:01:30]} 19. Rac1 {[%clk 0:02:48]}  Rac8 {[%clk 0:01:14]} 20. Ba6 {[%clk 0:02:47]}  Ra8 {[%clk 0:00:54]} 21. Ne5 {[%clk 0:02:47]}  Be6 {[%clk 0:00:48]} 22. f3 {[%clk 0:02:33]}  h5 {[%clk 0:00:43]} 23. h3 {[%clk 0:02:28]}  h4 {[%clk 0:00:38]} 24. Ke2 {[%clk 0:02:22]}  Kg7 {[%clk 0:00:21]} 25. R1c3 {[%clk 0:02:18]}  Rd5 {[%clk 0:00:16]} 26. Ng4 {[%clk 0:02:07]}  Bxg4 {[%clk 0:00:15]} 27. hxg4 {[%clk 0:02:08]}  g5 {[%clk 0:00:12]} 28. Bh2 {[%clk 0:02:08]}  e6 {[%clk 0:00:11]} 29. Bd3 {[%clk 0:01:52]}  Rdd8 {[%clk 0:00:03]} 30. Be4 {[%clk 0:01:50]}  Rab8 {[%clk 0:00:02]} 31. Rxa7 {[%clk 0:01:51]}  Rbc8 {[%clk 0:00:02]} 32. Rcc7 {[%clk 0:01:51]}  Rxc7 {[%clk 0:00:02]} 33. Bxc7 {[%clk 0:01:52]}  Rc8 {[%clk 0:00:02]} 34. Bxb6 {[%clk 0:01:53]}  Nc4 {[%clk 0:00:02]} 35. Bc5 {[%clk 0:01:50]}  Bd8 {[%clk 0:00:03]} 36. Bc2 {[%clk 0:01:37]}  Kf6 {[%clk 0:00:03]} 37. Bd3 {[%clk 0:01:35]}  Nb2 {[%clk 0:00:02]} 38. Bb5 {[%clk 0:01:34]}  e5 {[%clk 0:00:01]} 39. dxe5+ {[%clk 0:01:32]}  Kxe5 {[%clk 0:00:01]} 40. Bd4+ {[%clk 0:01:33]}  Ke6 {[%clk 0:00:01]} 41. Bd7+ {[%clk 0:01:32]}  Kd6 {[%clk 0:00:01]} 42. Bxc8 {[%clk 0:01:32]}  Nc4 {[%clk 0:00:02]} 43. Rd7+ {[%clk 0:01:32]}  Kc6 {[%clk 0:00:02]} 44. Rxd8 {[%clk 0:01:33]}  f5 {[%clk 0:00:02]} 45. gxf5 {[%clk 0:01:33]}  g4 {[%clk 0:00:03]} 46. fxg4 {[%clk 0:01:33]}  Nd6 {[%clk 0:00:03]} 47. Be6 {[%clk 0:01:31]}  Ne4 {[%clk 0:00:03]} 48. a5 {[%clk 0:01:30]}  Ng3+ {[%clk 0:00:02]} 49. Kf3 {[%clk 0:01:30]}  Nf1 {[%clk 0:00:02]} 50. g5 {[%clk 0:01:31]}  Nd2+ {[%clk 0:00:03]} 51. Kg4 {[%clk 0:01:31]}  h3 {[%clk 0:00:03]} 52. gxh3 {[%clk 0:01:31]}  Ne4 {[%clk 0:00:03]} 53. h4 {[%clk 0:01:31]}  Nf2+ {[%clk 0:00:02]} 54. Kf3 {[%clk 0:01:32]} 1-0

[Event "November 21 Late 2023"]
[Site "https://www.chess.com"]
[Date "2023.11.21"]
[Round "2"]
[White "Lymar, Vladislav"]
[Black "PoXerStar"]
[Result "1-0"]
[Board "102"]
[TimeControl "180+1"]
[WhiteFideId "14162180"]
[WhiteElo "2234"]
[BlackElo "2395"]
[WhiteTeam "UKR"]
[WhiteClock "0:01:34"]
[BlackClock "0:00:00"]

1. e4 {[%clk 0:03:00]}  e5 {[%clk 0:02:57]} 2. Nf3 {[%clk 0:03:00]}  Nc6 {[%clk 0:02:58]} 3. Nc3 {[%clk 0:03:00]}  Nf6 {[%clk 0:02:57]} 4. h3 {[%clk 0:03:00]}  Bc5 {[%clk 0:02:29]} 5. Nxe5 {[%clk 0:02:58]}  Nxe5 {[%clk 0:02:30]} 6. d4 {[%clk 0:02:58]}  Bd6 {[%clk 0:02:30]} 7. dxe5 {[%clk 0:02:58]}  Bxe5 {[%clk 0:02:31]} 8. Bd3 {[%clk 0:02:59]}  O-O {[%clk 0:02:31]} 9. O-O {[%clk 0:02:46]}  Re8 {[%clk 0:02:26]} 10. Re1 {[%clk 0:02:41]}  d6 {[%clk 0:02:03]} 11. Bg5 {[%clk 0:02:33]}  c6 {[%clk 0:01:55]} 12. Qd2 {[%clk 0:02:20]}  Qb6 {[%clk 0:01:51]} 13. Rab1 {[%clk 0:02:17]}  a5 {[%clk 0:01:46]} 14. Nd1 {[%clk 0:02:13]}  Bd7 {[%clk 0:01:32]} 15. c3 {[%clk 0:02:11]}  d5 {[%clk 0:01:03]} 16. Be3 {[%clk 0:01:36]}  Qc7 {[%clk 0:01:00]} 17. f4 {[%clk 0:01:35]}  Bd6 {[%clk 0:00:00]} 18. e5 {[%clk 0:01:34]} 1-0

[Event "November 21 Late 2023"]
[Site "https://www.chess.com"]
[Date "2023.11.21"]
[Round "2"]
[White "Janaszak, Dawid"]
[Black "Akhayan, Ruben"]
[Result "1-0"]
[Board "103"]
[TimeControl "180+1"]
[WhiteFideId "1119206"]
[BlackFideId "204439"]
[WhiteElo "2218"]
[BlackElo "2141"]
[WhiteTeam "POL"]
[BlackTeam "BEL"]
[WhiteClock "0:01:28"]
[BlackClock "0:01:19"]

1. Nc3 {[%clk 0:03:00]}  Nf6 {[%clk 0:02:58]} 2. e4 {[%clk 0:02:59]}  e5 {[%clk 0:02:58]} 3. d4 {[%clk 0:02:58]}  exd4 {[%clk 0:02:56]} 4. Qxd4 {[%clk 0:02:58]}  Nc6 {[%clk 0:02:56]} 5. Qd3 {[%clk 0:02:58]}  Bb4 {[%clk 0:02:49]} 6. Bd2 {[%clk 0:02:58]}  O-O {[%clk 0:02:49]} 7. O-O-O {[%clk 0:02:58]}  Re8 {[%clk 0:02:50]} 8. Nge2 {[%clk 0:02:55]}  d5 {[%clk 0:02:41]} 9. exd5 {[%clk 0:02:52]}  Ne5 {[%clk 0:02:41]} 10. Qd4 {[%clk 0:02:46]}  Qe7 {[%clk 0:02:34]} 11. Bg5 {[%clk 0:02:35]}  h6 {[%clk 0:02:28]} 12. Bxf6 {[%clk 0:02:36]}  Qxf6 {[%clk 0:02:28]} 13. Qxb4 {[%clk 0:02:35]}  Qxf2 {[%clk 0:02:24]} 14. Qf4 {[%clk 0:02:31]}  Qb6 {[%clk 0:02:21]} 15. Ng3 {[%clk 0:02:27]}  Bg4 {[%clk 0:02:18]} 16. Be2 {[%clk 0:02:27]}  Bxe2 {[%clk 0:02:17]} 17. Ngxe2 {[%clk 0:02:26]}  Qa6 {[%clk 0:02:12]} 18. Rhf1 {[%clk 0:02:22]}  Re7 {[%clk 0:02:11]} 19. Nd4 {[%clk 0:02:20]}  Rae8 {[%clk 0:02:07]} 20. d6 {[%clk 0:02:17]}  cxd6 {[%clk 0:02:05]} 21. Nf5 {[%clk 0:02:13]}  Rc7 {[%clk 0:02:03]} 22. Rxd6 {[%clk 0:02:03]}  Rc4 {[%clk 0:01:34]} 23. Rxa6 {[%clk 0:01:56]}  Rxf4 {[%clk 0:01:32]} 24. Rxf4 {[%clk 0:01:56]}  bxa6 {[%clk 0:01:32]} 25. Ra4 {[%clk 0:01:50]}  a5 {[%clk 0:01:28]} 26. b3 {[%clk 0:01:46]}  Kh7 {[%clk 0:01:27]} 27. Rxa5 {[%clk 0:01:44]}  g6 {[%clk 0:01:27]} 28. Nd6 {[%clk 0:01:41]}  Re7 {[%clk 0:01:26]} 29. Nd5 {[%clk 0:01:37]}  Re6 {[%clk 0:01:25]} 30. Nc4 {[%clk 0:01:30]}  Ng4 {[%clk 0:01:19]} 31. Rxa7 {[%clk 0:01:28]} 1-0

[Event "November 21 Late 2023"]
[Site "https://www.chess.com"]
[Date "2023.11.21"]
[Round "2"]
[White "Toropov, Pavel"]
[Black "Kujawski, Adam"]
[Result "1-0"]
[Board "104"]
[TimeControl "180+1"]
[WhiteFideId "24129178"]
[BlackFideId "1100920"]
[WhiteElo "2182"]
[BlackElo "2054"]
[WhiteTeam "RUS"]
[BlackTeam "POL"]
[WhiteClock "0:00:42"]
[BlackClock "0:00:08"]

1. e4 {[%clk 0:03:00]}  e5 {[%clk 0:03:00]} 2. Nf3 {[%clk 0:02:59]}  Nc6 {[%clk 0:03:00]} 3. Nc3 {[%clk 0:03:00]}  Nf6 {[%clk 0:02:59]} 4. d4 {[%clk 0:03:00]}  Bb4 {[%clk 0:02:59]} 5. Nxe5 {[%clk 0:02:58]}  Nxe4 {[%clk 0:02:59]} 6. Qg4 {[%clk 0:02:58]}  Nxc3 {[%clk 0:02:59]} 7. Qxg7 {[%clk 0:02:57]}  Rf8 {[%clk 0:02:59]} 8. a3 {[%clk 0:02:52]}  Nxd4 {[%clk 0:02:57]} 9. axb4 {[%clk 0:02:43]}  Nxc2+ {[%clk 0:02:56]} 10. Kd2 {[%clk 0:02:44]}  Nxa1 {[%clk 0:02:57]} 11. Kxc3 {[%clk 0:02:44]}  Qe7 {[%clk 0:02:56]} 12. Bh6 {[%clk 0:02:36]}  f6 {[%clk 0:02:55]} 13. Qxe7+ {[%clk 0:02:35]}  Kxe7 {[%clk 0:02:55]} 14. Bxf8+ {[%clk 0:02:35]}  Kxf8 {[%clk 0:02:56]} 15. Ng4 {[%clk 0:02:33]}  a5 {[%clk 0:02:51]} 16. Nxf6 {[%clk 0:02:12]}  axb4+ {[%clk 0:02:49]} 17. Kxb4 {[%clk 0:02:13]}  d6 {[%clk 0:02:20]} 18. Bd3 {[%clk 0:01:54]}  Be6 {[%clk 0:02:17]} 19. Nxh7+ {[%clk 0:01:52]}  Kg7 {[%clk 0:02:16]} 20. Ng5 {[%clk 0:01:52]}  c5+ {[%clk 0:02:16]} 21. Kc3 {[%clk 0:01:52]}  Bd7 {[%clk 0:01:47]} 22. Ne4 {[%clk 0:01:39]}  b5 {[%clk 0:01:44]} 23. Nxd6 {[%clk 0:01:35]}  b4+ {[%clk 0:01:43]} 24. Kd2 {[%clk 0:01:35]}  Bc6 {[%clk 0:01:34]} 25. Nc4 {[%clk 0:01:28]}  Nb3+ {[%clk 0:01:33]} 26. Kc2 {[%clk 0:01:23]}  Nd4+ {[%clk 0:01:32]} 27. Kb1 {[%clk 0:01:20]}  Kf6 {[%clk 0:01:29]} 28. f3 {[%clk 0:01:19]}  Rg8 {[%clk 0:01:25]} 29. Ne3 {[%clk 0:01:02]}  b3 {[%clk 0:01:00]} 30. Re1 {[%clk 0:00:57]}  Rd8 {[%clk 0:00:21]} 31. Bc4 {[%clk 0:00:52]}  Bxf3 {[%clk 0:00:14]} 32. gxf3 {[%clk 0:00:50]}  Nxf3 {[%clk 0:00:14]} 33. Rf1 {[%clk 0:00:50]}  Ke5 {[%clk 0:00:13]} 34. Rxf3 {[%clk 0:00:48]}  Kd4 {[%clk 0:00:14]} 35. Bxb3 {[%clk 0:00:43]}  Re8 {[%clk 0:00:08]} 36. Nf5+ {[%clk 0:00:42]} 1-0

[Event "November 21 Late 2023"]
[Site "https://www.chess.com"]
[Date "2023.11.21"]
[Round "2"]
[White "hristos03"]
[Black "Chylewski, Patryk"]
[Result "1/2-1/2"]
[Board "107"]
[TimeControl "180+1"]
[BlackFideId "1186191"]
[WhiteElo "2383"]
[BlackElo "2176"]
[BlackTeam "POL"]
[WhiteClock "0:00:06"]
[BlackClock "0:00:03"]

1. e4 {[%clk 0:02:59]}  c5 {[%clk 0:02:55]} 2. Nf3 {[%clk 0:03:00]}  Nc6 {[%clk 0:02:52]} 3. d4 {[%clk 0:03:00]}  cxd4 {[%clk 0:02:53]} 4. Nxd4 {[%clk 0:03:01]}  g6 {[%clk 0:02:49]} 5. Nc3 {[%clk 0:03:00]}  Bg7 {[%clk 0:02:49]} 6. Be3 {[%clk 0:03:01]}  Nf6 {[%clk 0:02:47]} 7. Be2 {[%clk 0:02:59]}  O-O {[%clk 0:02:45]} 8. O-O {[%clk 0:02:57]}  d5 {[%clk 0:02:37]} 9. Nxc6 {[%clk 0:02:42]}  bxc6 {[%clk 0:02:37]} 10. e5 {[%clk 0:02:41]}  Nd7 {[%clk 0:02:35]} 11. f4 {[%clk 0:02:41]}  e6 {[%clk 0:02:35]} 12. Rf3 {[%clk 0:02:23]}  c5 {[%clk 0:02:34]} 13. Nb5 {[%clk 0:02:22]}  Rb8 {[%clk 0:02:14]} 14. Rb1 {[%clk 0:02:11]}  d4 {[%clk 0:01:39]} 15. Bf2 {[%clk 0:02:10]}  Bb7 {[%clk 0:01:39]} 16. Rh3 {[%clk 0:02:08]}  Bd5 {[%clk 0:01:34]} 17. c4 {[%clk 0:01:50]}  Be4 {[%clk 0:01:30]} 18. Bd3 {[%clk 0:01:50]}  Bxd3 {[%clk 0:01:30]} 19. Qxd3 {[%clk 0:01:50]}  Qa5 {[%clk 0:01:19]} 20. a3 {[%clk 0:01:22]}  Rfc8 {[%clk 0:01:12]} 21. Nd6 {[%clk 0:01:09]}  Rc6 {[%clk 0:01:08]} 22. Ne4 {[%clk 0:01:07]}  Qa4 {[%clk 0:00:50]} 23. b4 {[%clk 0:00:34]}  cxb4 {[%clk 0:00:44]} 24. Qxd4 {[%clk 0:00:32]}  Qc2 {[%clk 0:00:23]} 25. Rf1 {[%clk 0:00:15]}  Rxc4 {[%clk 0:00:19]} 26. Qxd7 {[%clk 0:00:15]}  Qxe4 {[%clk 0:00:19]} 27. axb4 {[%clk 0:00:12]}  Rcxb4 {[%clk 0:00:18]} 28. Qxa7 {[%clk 0:00:08]}  Rc8 {[%clk 0:00:13]} 29. Rf3 {[%clk 0:00:06]}  Qe2 {[%clk 0:00:12]} 30. h3 {[%clk 0:00:04]}  h5 {[%clk 0:00:11]} 31. Bg3 {[%clk 0:00:03]}  Qc2 {[%clk 0:00:10]} 32. Kh2 {[%clk 0:00:02]}  Bf8 {[%clk 0:00:09]} 33. R1f2 {[%clk 0:00:02]}  Qf5 {[%clk 0:00:08]} 34. Bh4 {[%clk 0:00:02]}  Rcc4 {[%clk 0:00:07]} 35. Bg5 {[%clk 0:00:02]}  Rc8 {[%clk 0:00:07]} 36. Qd7 {[%clk 0:00:02]}  Rbc4 {[%clk 0:00:06]} 37. Qd2 {[%clk 0:00:02]}  R4c7 {[%clk 0:00:05]} 38. Qe3 {[%clk 0:00:03]}  Bc5 {[%clk 0:00:06]} 39. Qe2 {[%clk 0:00:02]}  Bxf2 {[%clk 0:00:06]} 40. Qxf2 {[%clk 0:00:03]}  Rc2 {[%clk 0:00:06]} 41. Qg3 {[%clk 0:00:03]}  Kh7 {[%clk 0:00:06]} 42. Bf6 {[%clk 0:00:02]}  Re2 {[%clk 0:00:06]} 43. Rd3 {[%clk 0:00:03]}  Rcc2 {[%clk 0:00:06]} 44. Rd7 {[%clk 0:00:02]}  Rxg2+ {[%clk 0:00:05]} 45. Qxg2 {[%clk 0:00:03]}  Rxg2+ {[%clk 0:00:05]} 46. Kxg2 {[%clk 0:00:04]}  Qe4+ {[%clk 0:00:05]} 47. Kg3 {[%clk 0:00:04]}  Qe3+ {[%clk 0:00:05]} 48. Kg2 {[%clk 0:00:04]}  Qe2+ {[%clk 0:00:05]} 49. Kg3 {[%clk 0:00:04]}  Qe1+ {[%clk 0:00:06]} 50. Kg2 {[%clk 0:00:04]}  Qe4+ {[%clk 0:00:06]} 51. Kg3 {[%clk 0:00:05]}  Qe3+ {[%clk 0:00:03]} 52. Kg2 {[%clk 0:00:05]}  Qe2+ {[%clk 0:00:03]} 53. Kg3 {[%clk 0:00:05]}  Qe1+ {[%clk 0:00:02]} 54. Kg2 {[%clk 0:00:06]}  Qe4+ {[%clk 0:00:03]} 1/2-1/2